bitfinex/quotes_ETHUSD_20251217
["timestamp","ask_amount","ask_price","bid_price","bid_amount"]
[1765990096730,2.3333,2848.4,2847.4,5.9433]
[1765990097108,0.04388582,2848.3,2847.5,5.9433]
[1765990097326,0.835673,2848.5,2847.6,0.405504]
[1765990097327,2.9123,2848.5,2847.6,0.405504]
[1765990097531,0.001,2848.8,2847.7,2.1395]
[1765990097730,0.001,2848.8,2847.8,6.1978004]
[1765990098138,0.001,2848.8,2847.8,6.7768004]
[1765990098352,0.001,2848.8,2848.0,5.9433]
[1765990098740,0.579,2848.9,2848.2,2.1395]
[1765990099039,0.001,2850.1,2848.7,5.9433]
[1765990099214,0.001,2850.1,2849.0,6.348804]
[1765990099420,2.3333,2849.9,2848.8,4.08924992]
[1765990099642,2.3333,2849.9,2848.4,5.9433]
[1765990099845,2.3333,2849.9,2847.8,0.27913701]
[1765990099846,0.4692,2849.0,2847.1,5.9433]
[1765990100151,0.4692,2849.0,2847.4,3.51195842]
[1765990100152,0.001,2848.5,2847.4,3.51195842]
[1765990100356,2.9123,2848.4,2847.2,0.579]
[1765990100522,0.04388582,2848.3,2847.2,6.5223]
[1765990100721,0.001,2848.5,2847.4,5.9433]
[1765990101024,0.579,2849.0,2848.1,5.9433]
[1765990101228,0.579,2849.0,2848.2,5.9433]
[1765990101571,0.001,2849.7,2848.6,5.9433]
[1765990101847,2.3333,2849.6,2848.3,5.9433]
[1765990102048,2.84736734,2849.5,2848.0,0.579]
[1765990102220,2.3333,2849.3,2848.1,3.51109353]
[1765990102424,0.579,2849.4,2848.1,3.51109353]
[1765990102425,2.37717196,2849.2,2848.1,3.51109368]
[1765990102763,0.4702,2848.9,2846.6,3.53759183]
[1765990103061,2.3333,2848.3,2847.0,3.51239234]
[1765990103233,2.95618736,2848.2,2847.0,3.51239234]
[1765990103431,2.95618736,2848.2,2847.1,6.5223]
[1765990103634,3.2988261,2848.2,2847.1,6.5223]
[1765990104034,2.3333,2848.8,2847.5,5.9433]
[1765990104235,2.3333,2848.8,2847.0,7.0248616]
[1765990104236,2.3333,2848.2,2847.0,5.9433]
[1765990104435,2.3333,2848.0,2846.8,3.51269358]
[1765990104634,2.3333,2847.8,2846.9,3.5125787]
[1765990104865,0.579,2847.9,2847.0,5.9433]
[1765990105043,2.3333,2847.8,2846.7,1.04338023]
[1765990105239,0.46438023,2848.2,2847.0,5.9433]
[1765990105490,0.579,2848.2,2847.2,5.9433]
[1765990105644,0.579,2848.2,2847.4,5.9433]
[1765990105844,0.579,2848.2,2847.1,0.579]
[1765990105845,2.3333,2848.1,2847.1,0.405504]
[1765990106043,2.3333,2848.1,2847.0,0.46438023]
[1765990106644,0.579,2848.2,2847.1,5.9433]
[1765990106858,2.3333,2848.1,2847.1,5.9433]
[1765990107384,2.3333,2848.1,2846.5,3.5129991]
[1765990107385,2.3333,2847.8,2846.2,5.9433]
[1765990107556,0.001,2847.9,2847.1,3.51233074]
[1765990107946,0.001,2847.9,2846.8,5.9433]
[1765990108146,0.001,2847.9,2847.0,3.51246736]
[1765990108449,2.8035,2847.8,2846.5,3.51298272]
[1765990108643,2.79768023,2847.6,2846.5,3.51301382]
[1765990108882,2.79768023,2847.6,2846.3,9.45654582]
[1765990108883,2.79768023,2847.6,2846.3,5.9433]
[1765990109247,0.001,2847.9,2847.2,0.405504]
[1765990109563,0.001,2847.9,2847.3,5.9433]
[1765990109971,0.001,2847.9,2847.2,0.579]
[1765990110153,0.001,2847.9,2847.2,6.5223]
[1765990111087,0.001,2847.9,2847.3,2.1395]
[1765990111288,0.001,2847.9,2847.5,5.9433]
[1765990111487,0.579,2848.8,2847.7,2.1395]
[1765990111675,0.579,2848.8,2847.8,5.9433]
[1765990112506,0.579,2848.8,2848.0,5.9433]
[1765990113211,2.3333,2848.7,2847.6,3.51162316]
[1765990113500,2.3333,2848.5,2847.6,3.51170373]
[1765990113720,2.8045,2849.0,2847.7,5.9433]
[1765990113919,2.8045,2849.0,2847.8,3.124004]
[1765990113920,0.46438023,2848.9,2847.8,3.124004]
[1765990114101,0.46438023,2848.9,2847.9,5.9433]
[1765990114315,2.9123,2849.0,2847.9,5.9433]
[1765990114316,2.3333,2849.0,2847.9,5.9433]
[1765990114524,2.3333,2848.8,2847.5,3.5117988]
[1765990114731,2.3333,2848.7,2847.6,12.96671321]
[1765990114906,2.3333,2848.7,2847.6,5.9433]
[1765990115430,0.46438023,2849.0,2847.8,2.1395]
[1765990115601,0.46438023,2849.0,2848.0,5.9433]
[1765990115805,0.46438023,2849.0,2848.1,6.348804]
[1765990116133,0.50925527,2849.0,2848.1,6.348804]
[1765990116536,2.79768023,2848.9,2848.0,0.002]
[1765990116740,0.001,2849.0,2848.3,6.348804]
[1765990116942,0.001,2849.7,2848.2,0.86988423]
[1765990117241,0.001,2849.7,2849.0,0.405504]
[1765990117432,0.001,2849.7,2849.0,5.9433]
[1765990117847,2.3343,2849.7,2848.6,5.9433]
[1765990118022,2.3343,2849.7,2848.7,0.405504]
[1765990118023,2.56773,2849.7,2848.7,0.405504]
[1765990118217,0.001,2849.7,2848.9,5.9433]
[1765990118546,2.3343,2849.7,2848.6,0.983504]
[1765990118715,0.001,2849.7,2848.9,2.1395]
[1765990118910,0.001,2849.7,2849.0,5.9433]
[1765990119218,0.001,2849.7,2849.0,10.26152998]
[1765990119608,0.001,2849.7,2849.1,6.348804]
[1765990119808,0.001,2850.0,2849.3,8.0828]
[1765990120040,0.001,2850.0,2849.3,5.9433]
[1765990120246,0.001,2850.0,2849.0,1.38628]
[1765990120450,0.001,2850.0,2848.8,2.1395]
[1765990120451,2.79868023,2850.0,2848.8,3.51019759]
[1765990120656,2.79868023,2850.0,2849.1,5.8174]
[1765990120813,0.46538023,2850.0,2849.2,5.8174]
[1765990121017,2.70548023,2850.0,2848.8,2.3626]
[1765990121315,2.70548023,2850.0,2849.0,3.51000351]
[1765990121550,2.70548023,2850.0,2849.0,12.83740702]
[1765990121852,0.001,2850.0,2849.6,5.8174]
[1765990122014,0.001,2850.0,2849.2,6.222904]
[1765990122847,0.001,2850.0,2849.2,6.800904]
[1765990123044,0.001,2850.0,2849.3,6.7337504]
[1765990123214,0.001,2850.0,2849.1,7.01976062]
[1765990123415,0.001,2850.1,2849.5,5.8174]
[1765990123659,0.001,2850.1,2849.5,8.18]
[1765990123864,0.001,2850.0,2849.6,5.8174]
[1765990124225,0.001,2850.2,2849.8,5.8174]
[1765990124448,0.001,2850.2,2849.8,2.3626]
[1765990124724,2.2401,2851.0,2850.0,6.222904]
[1765990124920,2.2401,2851.0,2850.0,5.8174]
[1765990125132,0.579,2851.1,2850.2,5.8174]
[1765990125337,0.579,2851.1,2850.5,5.8174]
[1765990125650,0.578,2851.9,2850.4,0.405504]
[1765990125957,0.578,2851.9,2850.9,5.8174]
[1765990126327,0.578,2851.9,2851.2,0.405504]
[1765990126542,2.2401,2851.8,2850.6,5.8174]
[1765990126746,2.2401,2851.7,2850.6,5.8174]
[1765990126956,2.2401,2851.7,2850.5,1.15087119]
[1765990126957,2.2401,2851.5,2850.5,0.578]
[1765990127129,2.2401,2851.5,2850.3,0.405504]
[1765990127130,2.2401,2851.5,2850.3,6.222904]
[1765990127322,2.2401,2851.3,2850.4,3.50827953]
[1765990127520,2.2401,2851.3,2850.5,0.405504]
[1765990127956,2.2401,2851.3,2850.4,0.405504]
[1765990128130,2.51413168,2851.3,2850.4,0.405504]
[1765990128641,0.04384118,2851.2,2850.3,12.83408274]
[1765990128951,3.5308813,2852.1,2850.8,5.8174]
[1765990128952,0.578,2851.7,2850.8,5.8174]
[1765990129154,6.21544,2851.6,2850.3,5.8174]
[1765990129362,0.9466,2851.4,2850.2,0.578]
[1765990129570,0.9466,2851.1,2849.6,0.578]
[1765990129726,0.50821834,2851.4,2849.6,0.578]
[1765990129727,0.9466,2850.9,2849.6,0.578]
[1765990129923,1.72227562,2850.7,2849.4,0.578]
[1765990130230,3.1867,2850.6,2849.4,0.578]
[1765990130431,3.50537,2850.6,2849.4,4.08748113]
[1765990130761,3.50537,2850.6,2849.2,2.3626]
[1765990130762,2.2401,2850.4,2849.2,2.3626]
[1765990130964,2.70448023,2850.4,2849.2,2.3626]
[1765990131176,0.578,2850.4,2849.5,5.8174]
[1765990131376,0.578,2850.4,2849.6,7.01851479]
[1765990131578,0.578,2850.4,2849.5,0.818]
[1765990131579,0.578,2850.4,2849.7,5.8174]
[1765990132193,0.578,2850.6,2849.7,5.8174]
[1765990132490,0.46438023,2851.2,2849.7,2.3626]
[1765990132692,0.46438023,2851.0,2849.8,5.8174]
[1765990133003,0.001,2851.3,2850.2,2.3626]
[1765990133295,0.001,2851.3,2850.9,5.8174]
[1765990133494,0.578,2851.7,2850.9,8.18]
[1765990133662,0.578,2851.7,2851.0,5.8174]
[1765990134922,0.578,2851.7,2850.8,0.405504]
[1765990135091,0.578,2851.7,2849.9,2.3626]
[1765990135092,2.74831526,2851.6,2849.9,2.3626]
[1765990135403,2.70448023,2851.6,2850.3,0.46438023]
[1765990135901,1.45581526,2851.6,2850.3,0.405504]
[1765990136066,2.70448023,2851.4,2850.2,0.405504]
[1765990136279,2.2401,2851.3,2850.3,5.8174]
[1765990136569,0.578,2851.2,2850.3,5.8174]
[1765990136811,0.9476,2851.0,2848.5,0.02463661]
[1765990136958,2.2401,2850.7,2849.3,5.8174]
[1765990137287,2.70448023,2850.6,2849.6,3.50926445]
[1765990137582,2.2401,2850.6,2849.5,9.3267803]
[1765990137793,2.28395195,2850.5,2849.5,5.8174]
[1765990137952,2.2401,2850.5,2849.5,12.8361139]
[1765990138147,2.2401,2850.5,2849.5,13.78227893]
[1765990138354,0.46438023,2850.6,2849.6,5.8174]
[1765990138711,2.2401,2851.6,2849.7,0.405504]
[1765990138879,2.2401,2851.1,2849.6,5.8174]
[1765990139197,2.2401,2851.1,2850.0,5.8174]
[1765990139396,0.578,2851.0,2850.1,12.83469762]
[1765990139605,2.2401,2851.1,2850.1,12.83469762]
[1765990139606,2.2401,2851.1,2850.2,6.222904]
[1765990139770,0.97323661,2851.7,2850.5,6.222904]
[1765990139771,0.578,2851.3,2850.5,6.222904]
[1765990139965,2.2411,2851.7,2850.6,5.8174]
[1765990140171,2.2411,2851.7,2850.7,5.8174]
[1765990140425,0.001,2851.7,2850.9,5.8174]
[1765990140618,0.001,2852.3,2851.3,5.8174]
[1765990140905,0.001,2852.3,2850.5,1.32293063]
[1765990140906,0.001,2852.3,2851.5,2.3626]
[1765990141077,0.001,2852.9,2851.8,0.405504]
[1765990141274,0.001,2852.9,2851.6,0.405504]
[1765990141275,0.001,2853.2,2852.4,0.405504]
[1765990141467,0.001,2853.2,2852.6,5.8174]
[1765990141868,0.001,2853.6,2852.8,5.8174]
[1765990142066,0.001,2853.6,2853.2,5.8174]
[1765990142301,0.001,2854.2,2853.4,2.3626]
[1765990142503,0.001,2854.2,2853.5,5.8174]
[1765990142707,2.2401,2855.4,2853.9,6.222904]
[1765990142869,2.2401,2855.8,2854.5,2.3626]
[1765990143067,0.9586,2856.2,2854.8,5.8174]
[1765990143280,2.84273661,2856.3,2854.9,6.222904]
[1765990143480,0.46438023,2856.2,2855.0,5.8174]
[1765990144009,0.46438023,2855.3,2853.5,5.8174]
[1765990144169,0.46438023,2854.9,2853.1,0.577]
[1765990144369,1.42298023,2854.5,2853.0,0.577]
[1765990144570,0.46438023,2854.1,2852.7,5.8174]
[1765990144878,0.46438023,2854.1,2851.8,0.02463661]
[1765990144879,2.2401,2853.4,2851.8,2.3626]
[1765990145079,2.70448023,2853.1,2851.8,0.577]
[1765990145306,2.2401,2852.9,2851.6,5.8174]
[1765990145484,2.2401,2852.7,2851.3,2.3626]
[1765990145688,2.70448023,2852.6,2851.4,0.577]
[1765990145993,0.0438212,2852.5,2851.4,0.577]
[1765990146169,2.74830143,2852.5,2851.4,0.577]
[1765990146506,0.577,2852.7,2851.5,5.8174]
[1765990146680,0.02463661,2852.9,2851.6,0.577]
[1765990146880,2.2401,2853.0,2851.7,5.8174]
[1765990147079,0.577,2853.2,2851.8,2.768104]
[1765990147377,0.02463661,2855.1,2852.2,6.222904]
[1765990147378,2.2401,2853.6,2852.2,6.222904]
[1765990147578,0.577,2853.6,2852.3,7.71792808]
[1765990147783,2.2401,2853.4,2852.3,6.3944]
[1765990148180,2.2401,2853.4,2852.3,5.8174]
[1765990148376,0.577,2853.6,2852.5,0.405504]
[1765990148572,2.2401,2853.9,2852.7,6.222904]
[1765990148773,0.578,2854.2,2852.9,5.8174]
[1765990149101,0.001,2854.2,2853.4,2.3626]
[1765990149300,0.577,2854.9,2853.8,5.5294]
[1765990149612,0.577,2854.9,2853.6,0.405504]
[1765990149613,2.1799,2854.8,2853.6,0.982504]
[1765990149776,2.1799,2854.8,2853.4,9.03396574]
[1765990149777,0.46438023,2854.6,2853.5,5.934904]
[1765990149971,0.46438023,2854.6,2853.4,0.577]
[1765990149972,0.0437905,2854.5,2853.8,3.50407472]
[1765990150212,0.577,2854.9,2853.9,6.39928423]
[1765990150514,2.1799,2855.1,2853.9,6.39928423]
[1765990150803,2.1799,2855.1,2853.9,5.934904]
[1765990151004,2.76068023,2854.9,2853.8,0.577]
[1765990151172,2.76068023,2854.9,2853.8,9.67169979]
[1765990151373,2.76068023,2854.9,2853.8,5.5906]
[1765990151724,0.46438023,2854.7,2853.6,0.982504]
[1765990152001,2.76068023,2854.7,2853.6,0.577]
[1765990152177,3.14446487,2854.7,2853.6,0.577]
[1765990152618,0.04378897,2854.6,2853.1,0.86988423]
[1765990152819,0.50817073,2854.5,2853.3,0.405504]
[1765990152992,0.50817073,2854.5,2852.8,2.222]
[1765990152993,0.9596,2854.4,2852.8,7.8126]
[1765990153187,1.58039357,2854.3,2852.8,9.67283303]
[1765990153391,0.577,2854.3,2853.0,5.5906]
[1765990153597,0.577,2854.3,2853.5,5.5906]
[1765990153791,0.577,2854.3,2853.2,5.5906]
[1765990154002,0.577,2854.3,2853.4,5.5906]
[1765990154417,0.001,2854.7,2853.6,2.222]
[1765990154721,0.22973,2854.6,2853.7,5.5906]
[1765990154898,0.0437905,2854.5,2853.7,5.5906]
[1765990155101,0.27351897,2854.6,2853.7,5.5906]
[1765990155311,2.2963,2854.4,2853.0,4.54643531]
[1765990155507,0.04379357,2854.3,2853.3,0.46438023]
[1765990155706,0.23400936,2854.2,2853.2,0.46438023]
[1765990156021,0.577,2854.1,2853.2,0.46438023]
[1765990156621,0.02563661,2854.7,2853.0,0.577]
[1765990156622,0.001,2855.4,2853.7,0.86988423]
[1765990156790,0.001,2855.4,2854.2,0.86988423]
[1765990156983,0.001,2855.4,2854.6,5.5906]
[1765990158209,2.2963,2855.0,2854.0,5.5906]
[1765990158395,0.62078437,2854.9,2854.0,5.5906]
[1765990158597,2.91708437,2854.9,2853.6,5.5906]
[1765990159001,2.2963,2854.7,2853.3,2.222]
[1765990159199,10.333132,2854.3,2853.3,2.222]
[1765990159390,2.2963,2854.1,2853.3,2.222]
[1765990159591,9.15988617,2854.8,2853.3,2.222]
[1765990159592,0.577,2854.7,2853.4,5.5906]
[1765990160129,0.04378897,2854.6,2853.7,5.5906]
[1765990160654,2.2963,2854.5,2853.3,2.222]
[1765990160788,2.34009204,2854.4,2853.3,2.222]
[1765990161127,0.577,2854.7,2853.3,3.50463877]
[1765990161428,0.577,2854.7,2853.6,5.5906]
[1765990161588,0.001,2855.4,2854.1,2.222]
[1765990161589,2.2973,2855.4,2854.1,2.222]
[1765990161789,0.577,2855.3,2854.1,5.5906]
[1765990161990,0.577,2855.3,2854.3,2.222]
[1765990162188,0.577,2855.3,2854.4,5.5906]
[1765990162448,0.577,2855.3,2854.7,5.5906]
[1765990162929,0.04377977,2855.2,2853.5,5.5906]
[1765990163224,0.577,2855.3,2853.3,7.76799244]
[1765990163225,0.001,2855.4,2854.3,0.405504]
[1765990163434,0.001,2855.4,2854.4,5.5906]
[1765990163435,0.0447767,2855.4,2854.4,5.5906]
[1765990163600,0.001,2855.4,2854.5,5.5906]
[1765990164007,0.001,2855.4,2854.6,5.5906]
[1765990164209,0.001,2855.4,2854.8,5.5906]
[1765990164417,0.001,2855.9,2854.8,6.37186]
[1765990164720,0.001,2855.9,2855.2,5.5906]
[1765990164921,0.001,2855.9,2854.9,0.577]
[1765990165141,0.001,2855.9,2855.2,2.222]
[1765990165624,0.001,2855.9,2855.2,5.5906]
[1765990165788,10.42774,2855.8,2854.2,5.5906]
[1765990165988,2.76068023,2855.6,2854.3,5.5906]
[1765990166228,2.76068023,2855.6,2853.4,9.15988617]
[1765990166229,7.553186,2855.3,2853.0,5.72700884]
[1765990166398,7.553186,2855.3,2852.7,0.02463661]
[1765990166399,2.2963,2855.2,2853.4,5.5906]
[1765990166719,2.2963,2855.2,2853.8,5.5906]
[1765990166720,2.3400813,2855.1,2853.8,5.5906]
[1765990166920,2.58790813,2855.0,2853.8,6.1666]
[1765990167098,0.04378437,2854.9,2853.8,5.5906]
[1765990167301,2.34008437,2854.9,2853.8,5.5906]
[1765990167608,2.8044646,2854.9,2853.8,5.5906]
[1765990167809,2.2963,2854.7,2853.6,0.576]
[1765990168002,3.23714628,2854.7,2853.6,0.576]
[1765990168326,2.2963,2854.6,2853.8,3.50406407]
[1765990168525,0.29160813,2855.0,2853.9,0.405504]
[1765990168746,2.2963,2855.1,2854.1,0.405504]
[1765990169146,2.2963,2855.1,2854.1,5.996104]
[1765990169334,2.2963,2855.1,2854.1,6.8755144]
[1765990169643,2.2963,2854.9,2854.1,0.576]
[1765990169850,2.2963,2854.9,2854.1,4.07972006]
[1765990170053,2.2963,2854.9,2854.1,7.58345153]
[1765990170254,2.2963,2854.9,2854.1,4.07972006]
[1765990170551,2.2963,2854.9,2854.1,7.58345153]
[1765990171038,2.2963,2854.9,2854.1,4.07972006]
[1765990171457,1.5396,2855.2,2853.8,3.50407021]
[1765990171617,2.76068023,2854.9,2853.9,0.576]
[1765990171946,2.2963,2854.9,2853.9,0.576]
[1765990172554,2.2963,2854.9,2854.0,0.405504]
[1765990173369,0.46438023,2855.2,2854.2,0.405504]
[1765990173517,2.57236802,2855.2,2854.3,4.07942142]
[1765990173720,1.5396,2855.0,2853.9,3.5039018]
[1765990174026,2.76068023,2854.5,2853.7,0.576]
[1765990174229,2.2963,2854.4,2853.7,0.576]
[1765990174426,2.2963,2854.2,2852.3,3.50587644]
[1765990174626,2.2963,2854.2,2852.0,3.50620728]
[1765990174627,0.46438023,2854.3,2852.5,5.5906]
[1765990174832,2.2963,2854.2,2853.2,7.00965101]
[1765990175058,2.2963,2854.2,2853.3,0.576]
[1765990175557,2.1156,2854.8,2853.5,7.00893638]
[1765990175765,2.76068023,2855.1,2853.9,0.405504]
[1765990175921,2.2963,2855.1,2854.1,0.405504]
[1765990176121,0.576,2855.7,2854.1,2.627504]
[1765990176354,0.576,2855.7,2854.2,2.222]
[1765990176528,0.001,2855.9,2854.8,5.996104]
[1765990176729,0.001,2855.9,2855.0,0.405504]
[1765990176942,0.001,2855.9,2855.0,2.627504]
[1765990177148,0.001,2855.9,2854.9,0.576]
[1765990177374,1.5406,2855.9,2855.0,0.576]
[1765990177657,0.001,2855.9,2854.9,7.0054993]
[1765990177865,0.001,2855.9,2855.0,1.10843435]
[1765990178179,0.001,2855.9,2855.3,5.5906]
[1765990178458,0.001,2855.9,2855.4,5.996104]
[1765990178848,0.001,2855.9,2855.4,0.405504]
[1765990179035,0.001,2855.9,2855.4,5.996104]
[1765990179231,0.001,2855.9,2855.3,0.576]
[1765990179455,0.001,2855.9,2855.4,2.627504]
[1765990179661,2.2973,2855.9,2855.1,3.50238735]
[1765990179833,2.2973,2855.9,2854.7,0.405504]
[1765990180038,2.2973,2855.9,2854.9,5.5906]
[1765990180236,2.2973,2855.9,2855.1,3.50248331]
[1765990180439,2.00398023,2855.6,2854.1,5.5906]
[1765990180641,2.28367517,2855.5,2854.7,3.50292814]
[1765990180853,2.2399,2855.5,2854.7,3.50291772]
[1765990181172,0.576,2855.8,2854.2,3.50358317]
[1765990181173,2.70428023,2855.3,2854.2,3.50358317]
[1765990181464,2.70428023,2855.3,2854.3,0.96701832]
[1765990181761,2.2399,2854.9,2853.9,3.5039016]
[1765990181973,2.2399,2854.9,2854.0,0.576]
[1765990182124,2.2399,2854.9,2853.8,5.5731]
[1765990182328,1.5396,2855.1,2854.3,3.50345797]
[1765990182546,1.5396,2855.1,2854.0,0.405504]
[1765990182547,0.48198802,2855.1,2854.0,0.405504]
[1765990182763,0.576,2855.2,2854.3,7.00693567]
[1765990182963,1.5833813,2855.1,2854.0,0.405504]
[1765990183164,2.70428023,2854.9,2853.9,0.576]
[1765990183368,2.2399,2854.9,2854.1,3.50370065]
[1765990183530,0.50815846,2855.3,2854.1,0.405504]
[1765990183531,2.2399,2855.3,2854.1,0.405504]
[1765990183861,3.28028023,2855.3,2854.3,0.405504]
[1765990184266,0.001,2855.9,2854.2,0.74131532]
[1765990184267,0.001,2855.9,2854.6,0.405504]
[1765990184473,0.001,2855.9,2854.8,0.405504]
[1765990184756,1.5396,2855.5,2854.2,0.74131532]
[1765990184929,0.46438023,2855.3,2854.3,0.405504]
[1765990185130,2.70428023,2855.3,2854.3,0.405504]
[1765990185330,2.2399,2855.1,2854.2,0.576]
[1765990185561,2.70428023,2855.1,2854.3,3.50348596]
[1765990185761,2.70428023,2855.1,2854.2,3.50355963]
[1765990186362,2.70428023,2855.1,2854.2,7.00716834]
[1765990187562,0.001,2855.2,2854.4,7.00672644]
[1765990187765,0.001,2855.2,2854.4,3.50336322]
[1765990188162,0.001,2855.2,2854.3,3.50342884]
[1765990188364,0.001,2855.2,2854.3,7.0069148]
[1765990188569,0.001,2855.2,2854.3,7.76520628]
[1765990189345,2.3319,2855.2,2854.3,7.0069148]
[1765990189730,0.001,2855.2,2854.4,0.405504]
[1765990190370,0.001,2855.2,2854.8,0.405504]
[1765990190534,0.001,2855.2,2854.6,0.405504]
[1765990190735,2.3309,2855.0,2854.2,3.50356663]
[1765990190972,2.37468283,2855.0,2854.2,3.50356663]
[1765990191172,0.89969134,2855.0,2853.9,0.405504]
[1765990191345,2.79528023,2854.9,2854.2,3.50358301]
[1765990191665,2.79528023,2854.9,2854.1,3.50373147]
[1765990191965,2.3309,2854.9,2853.6,5.5014]
[1765990192163,2.3309,2854.9,2853.0,3.50505234]
[1765990192164,2.3309,2854.6,2853.7,0.576]
[1765990192365,0.0437859,2854.8,2853.8,3.5040823]
[1765990192566,2.3309,2854.7,2854.0,3.50384886]
[1765990193168,2.3309,2854.7,2854.0,7.00770309]
[1765990193369,2.3309,2855.1,2854.0,7.00770309]
[1765990193672,2.79528023,2855.1,2853.9,7.41345802]
[1765990194172,2.79528023,2855.1,2854.0,0.002]
[1765990195559,2.83906153,2855.1,2854.0,0.002]
[1765990195757,0.46438023,2854.9,2854.0,0.002]
[1765990195960,2.3309,2854.7,2853.9,3.50397095]
[1765990196266,2.37468897,2854.6,2853.5,0.578]
[1765990196468,2.37468897,2854.6,2853.7,3.50421086]
[1765990196772,0.91760615,2855.0,2854.0,0.405504]
[1765990197142,0.46438023,2854.9,2854.0,0.405504]
[1765990197341,2.9069,2855.0,2854.0,8.047504]
[1765990197342,0.576,2855.0,2854.0,8.047504]
[1765990197770,0.576,2855.0,2854.2,0.405504]
[1765990197958,0.576,2855.0,2854.2,0.981504]
[1765990198163,2.3319,2855.2,2854.2,0.981504]
[1765990198373,0.001,2855.2,2854.3,0.405504]
[1765990198671,0.001,2855.2,2854.1,7.00746294]
[1765990198979,2.3309,2855.1,2854.0,7.00765197]
[1765990199285,0.04477977,2855.2,2854.1,7.642]
[1765990199286,0.001,2855.2,2854.1,7.642]
[1765990199590,0.001,2855.2,2854.2,5.906904]
[1765990199753,0.001,2855.2,2854.5,7.00648098]
[1765990199943,0.001,2855.2,2854.5,10.50972147]
[1765990200369,2.79448023,2855.0,2853.4,5.5014]
[1765990200644,2.3309,2854.8,2853.5,3.50642786]
[1765990200846,2.84229464,2854.9,2853.2,3.50477156]
[1765990200847,12.962897,2854.6,2853.2,3.50477156]
[1765990201063,1.8304,2854.4,2853.6,3.5043333]
[1765990201263,1.8304,2854.3,2853.2,7.00967334]
[1765990201465,7.62004546,2855.1,2853.2,7.00967334]
[1765990201466,0.001,2855.2,2853.6,2.1406]
[1765990201665,0.001,2855.2,2853.2,14.01934668]
[1765990201666,1.8314,2855.2,2854.0,0.405504]
[1765990201971,1.8304,2855.0,2854.0,0.576]
[1765990202177,0.001,2855.2,2854.3,2.1406]
[1765990202391,0.001,2855.2,2854.1,0.405504]
[1765990202392,0.001,2855.2,2854.8,2.1406]
[1765990202538,0.001,2855.6,2855.0,2.546104]
[1765990202741,0.001,2855.9,2855.2,0.405504]
[1765990202953,0.001,2855.9,2855.6,0.405504]
[1765990203684,0.001,2857.0,2855.8,5.906904]
[1765990203899,1.8304,2858.6,2856.6,0.405504]
[1765990204176,1.82167059,2859.1,2857.1,0.405504]
[1765990204177,1.8384,2858.4,2857.1,0.405504]
[1765990204342,1.8384,2858.4,2857.2,0.981504]
[1765990204549,1.8384,2858.4,2857.3,0.576]
[1765990204887,0.576,2858.7,2857.4,8.047504]
[1765990205190,0.04372463,2858.8,2857.8,0.405504]
[1765990205497,0.04372158,2859.0,2858.0,0.405504]
[1765990205662,1.87512005,2859.1,2858.0,0.405504]
[1765990205858,1.88212005,2859.1,2857.9,6.99813843]
[1765990206060,1.88212005,2859.1,2858.0,0.405504]
[1765990206274,1.88212005,2859.1,2857.6,5.5014]
[1765990206275,0.007,2858.8,2856.6,5.5014]
[1765990206459,0.007,2858.8,2855.7,0.07463661]
[1765990206460,1.8314,2858.3,2857.0,0.405504]
[1765990206799,1.8314,2858.1,2857.1,3.50004385]
[1765990207090,1.8384,2858.1,2857.0,0.405504]
[1765990207292,0.04373687,2858.0,2856.7,8.54221305]
[1765990207501,1.8314,2857.4,2855.6,2.1406]
[1765990207797,1.8314,2857.4,2854.9,7.85874207]
[1765990207798,0.007,2857.0,2855.7,3.5017361]
[1765990207968,1.87515371,2856.9,2855.0,3.50259082]
[1765990208171,0.007,2857.0,2855.6,3.50184795]
[1765990208172,0.04375525,2856.8,2855.6,3.50184795]
[1765990208489,0.04375525,2856.8,2855.1,3.50244646]
[1765990208490,2.32796476,2856.7,2855.5,7.642]
[1765990208692,1.8314,2856.1,2854.7,9.00427244]
[1765990208891,1.8314,2856.0,2854.8,4.07783656]
[1765990209092,1.8314,2856.5,2854.9,7.8125]
[1765990209293,1.8314,2856.4,2855.4,3.50212854]
[1765990209480,1.8314,2856.4,2854.4,0.46438023]
[1765990209481,0.04376291,2856.3,2854.1,3.52827222]
[1765990209682,1.3384,2856.2,2854.6,5.5228]
[1765990209988,0.74361473,2856.6,2854.5,2.2897]
[1765990209989,0.2792345,2856.6,2855.1,0.46438023]
[1765990210192,1.37515984,2856.5,2855.3,0.405504]
[1765990210391,1.3314,2856.5,2855.3,0.405504]
[1765990210580,1.3314,2856.5,2855.3,5.928304]
[1765990210761,0.575,2856.8,2855.3,5.928304]
[1765990211177,1.3314,2856.5,2854.9,0.405504]
[1765990211362,1.3314,2856.3,2855.1,0.405504]
[1765990211691,1.3314,2856.3,2855.1,0.980504]
[1765990211888,1.3314,2856.3,2855.3,0.405504]
[1765990212262,0.001,2856.6,2854.3,8.46539088]
[1765990212263,1.3314,2855.9,2854.3,8.46539088]
[1765990212537,1.3384,2855.8,2854.4,0.575]
[1765990212660,1.3384,2855.8,2854.6,3.50305221]
[1765990212866,0.575,2856.2,2854.0,3.50385062]
[1765990212867,1.3314,2855.4,2854.0,3.50385062]
[1765990213162,1.3314,2855.0,2854.1,7.00736445]
[1765990213809,1.3314,2855.0,2853.9,0.002]
[1765990213990,1.3314,2854.6,2853.5,3.50441591]
[1765990214167,0.575,2854.6,2853.5,0.70090037]
[1765990214377,0.575,2854.6,2853.6,3.50427152]
[1765990214574,0.575,2854.6,2853.0,3.50500897]